[Event "Titled Tuesday Blitz April 25 Late 2023"]
[White "Nasuta, Grzegorz"]
[Black "Grigoriants, Sergey"]
[WhiteFideId "1141686"]
[BlackFideId "4130804"]
[WhiteElo "2449"]
[BlackElo "2502"]
[Result "0-1"]
[Round "10"]
[TimeControl "180+2"]
[Date "2023.04.25"]
[WhiteClock "0:00:07"]
[BlackClock "0:00:06"]

1. e4 {[%clk 0:03:00]}  e5 {[%clk 0:02:54]} 2. Nf3 {[%clk 0:02:55]}  Nc6 {[%clk 0:02:54]} 3. Bc4 {[%clk 0:02:52]}  Bc5 {[%clk 0:02:53]} 4. O-O {[%clk 0:02:48]}  Nf6 {[%clk 0:02:53]} 5. d3 {[%clk 0:02:48]}  d6 {[%clk 0:02:50]} 6. c3 {[%clk 0:02:46]}  a6 {[%clk 0:02:50]} 7. Bb3 {[%clk 0:02:43]}  h6 {[%clk 0:02:47]} 8. Nbd2 {[%clk 0:02:42]}  O-O {[%clk 0:02:45]} 9. h3 {[%clk 0:02:41]}  Re8 {[%clk 0:02:39]} 10. Re1 {[%clk 0:02:41]}  Be6 {[%clk 0:02:32]} 11. Nf1 {[%clk 0:02:38]}  Bxb3 {[%clk 0:02:30]} 12. Qxb3 {[%clk 0:02:38]}  Rb8 {[%clk 0:02:02]} 13. Be3 {[%clk 0:02:29]}  Bxe3 {[%clk 0:01:38]} 14. Nxe3 {[%clk 0:02:28]}  Qd7 {[%clk 0:01:35]} 15. Rad1 {[%clk 0:02:26]}  g6 {[%clk 0:01:30]} 16. Nd5 {[%clk 0:02:09]}  Nxd5 {[%clk 0:01:28]} 17. Qxd5 {[%clk 0:02:05]}  Qe6 {[%clk 0:01:12]} 18. Qxe6 {[%clk 0:01:15]}  fxe6 {[%clk 0:01:07]} 19. b4 {[%clk 0:01:08]}  b5 {[%clk 0:00:53]} 20. Nd2 {[%clk 0:01:00]}  a5 {[%clk 0:00:53]} 21. a3 {[%clk 0:01:01]}  Ra8 {[%clk 0:00:51]} 22. Rb1 {[%clk 0:00:20]}  axb4 {[%clk 0:00:49]} 23. axb4 {[%clk 0:00:19]}  Ra2 {[%clk 0:00:43]} 24. Nf3 {[%clk 0:00:20]}  Rea8 {[%clk 0:00:40]} 25. Rec1 {[%clk 0:00:20]}  R8a4 {[%clk 0:00:37]} 26. Kf1 {[%clk 0:00:19]}  Kf7 {[%clk 0:00:37]} 27. Ne1 {[%clk 0:00:18]}  Ke7 {[%clk 0:00:36]} 28. Rc2 {[%clk 0:00:19]}  d5 {[%clk 0:00:31]} 29. Rbb2 {[%clk 0:00:11]}  Ra1 {[%clk 0:00:28]} 30. Ke2 {[%clk 0:00:10]}  Kd6 {[%clk 0:00:24]} 31. Nf3 {[%clk 0:00:10]}  g5 {[%clk 0:00:19]} 32. Nd2 {[%clk 0:00:08]}  Rg1 {[%clk 0:00:18]} 33. g3 {[%clk 0:00:08]}  Raa1 {[%clk 0:00:17]} 34. Nf3 {[%clk 0:00:08]}  Rh1 {[%clk 0:00:13]} 35. c4 {[%clk 0:00:07]}  bxc4 {[%clk 0:00:05]} 36. dxc4 {[%clk 0:00:02]}  dxe4 {[%clk 0:00:05]} 37. Rd2+ {[%clk 0:00:02]}  Ke7 {[%clk 0:00:05]} 38. b5 {[%clk 0:00:01]}  exf3+ {[%clk 0:00:05]} 39. Kxf3 {[%clk 0:00:02]}  Nd4+ {[%clk 0:00:06]} 40. Kg4 {[%clk 0:00:03]}  Kf6 {[%clk 0:00:05]} 41. c5 {[%clk 0:00:03]}  h5+ {[%clk 0:00:05]} 42. Kxh5 {[%clk 0:00:03]}  Rxh3+ {[%clk 0:00:06]} 43. Kg4 {[%clk 0:00:04]}  Rh7 {[%clk 0:00:05]} 44. b6 {[%clk 0:00:05]}  cxb6 {[%clk 0:00:05]} 45. cxb6 {[%clk 0:00:06]}  Rb7 {[%clk 0:00:05]} 46. f4 {[%clk 0:00:06]}  gxf4 {[%clk 0:00:05]} 47. gxf4 {[%clk 0:00:07]}  Ra4 {[%clk 0:00:05]} 48. fxe5+ {[%clk 0:00:07]}  Kxe5 {[%clk 0:00:06]} 49. Kg3 {[%clk 0:00:07]}  Kd5 {[%clk 0:00:06]} 50. Kf4 {[%clk 0:00:06]}  Ra6 {[%clk 0:00:05]} 51. Ke3 {[%clk 0:00:06]}  e5 {[%clk 0:00:06]} 52. Rb5+ {[%clk 0:00:07]}  Ke6 {[%clk 0:00:06]} 53. Rc5 {[%clk 0:00:07]}  Raxb6 {[%clk 0:00:06]} 54. Ke4 {[%clk 0:00:07]}  Rb5 {[%clk 0:00:06]} 55. Rxb5 {[%clk 0:00:05]}  Rxb5 {[%clk 0:00:06]} 56. Rh2 {[%clk 0:00:05]}  Kd6 {[%clk 0:00:04]} 57. Rh6+ {[%clk 0:00:05]}  Ne6 {[%clk 0:00:05]} 58. Rh8 {[%clk 0:00:04]}  Rb4+ {[%clk 0:00:05]} 59. Kd3 {[%clk 0:00:04]}  Rf4 {[%clk 0:00:05]} 60. Ke3 {[%clk 0:00:05]}  Ke7 {[%clk 0:00:05]} 61. Ra8 {[%clk 0:00:05]}  Kf6 {[%clk 0:00:06]} 62. Ra6 {[%clk 0:00:05]}  Rh4 {[%clk 0:00:06]} 63. Kf3 {[%clk 0:00:04]}  Kf5 {[%clk 0:00:06]} 64. Kg3 {[%clk 0:00:03]}  Rb4 {[%clk 0:00:06]} 65. Ra5 {[%clk 0:00:04]}  Rb3+ {[%clk 0:00:06]} 66. Kf2 {[%clk 0:00:04]}  Nd4 {[%clk 0:00:07]} 67. Ra8 {[%clk 0:00:04]}  Kf4 {[%clk 0:00:07]} 68. Ke1 {[%clk 0:00:03]}  Ke3 {[%clk 0:00:07]} 69. Ra1 {[%clk 0:00:02]}  Nc2+ {[%clk 0:00:06]} 70. Kd1 {[%clk 0:00:03]}  Nxa1 {[%clk 0:00:07]} 71. Kc1 {[%clk 0:00:04]}  e4 {[%clk 0:00:07]} 72. Kd1 {[%clk 0:00:04]}  Rd3+ {[%clk 0:00:07]} 73. Kc1 {[%clk 0:00:05]}  Kf2 {[%clk 0:00:06]} 74. Kb2 {[%clk 0:00:06]}  Rd8 {[%clk 0:00:06]} 75. Kc3 {[%clk 0:00:06]}  e3 {[%clk 0:00:07]} 76. Kb4 {[%clk 0:00:06]}  e2 {[%clk 0:00:08]} 77. Kc3 {[%clk 0:00:07]}  e1=Q+ {[%clk 0:00:08]} 78. Kb2 {[%clk 0:00:07]}  Qd2+ {[%clk 0:00:07]} 79. Ka3 {[%clk 0:00:07]}  Ra8# {[%clk 0:00:06]} 0-1


[Site "https://www.chess.com"]

[Event "Titled Tuesday Blitz April 25 Late 2023"]
[White "Anton Guijarro, David"]
[Black "Andreikin, Dmitry"]
[WhiteFideId "2285525"]
[BlackFideId "4158814"]
[WhiteElo "2618"]
[BlackElo "2736"]
[Result "0-1"]
[Round "10"]
[TimeControl "180+2"]
[Date "2023.04.25"]
[WhiteClock "0:00:04"]
[BlackClock "0:00:09"]

1. d4 {[%clk 0:03:00]}  Nf6 {[%clk 0:02:55]} 2. Nf3 {[%clk 0:03:01]}  c5 {[%clk 0:02:53]} 3. d5 {[%clk 0:03:01]}  b5 {[%clk 0:02:54]} 4. Bg5 {[%clk 0:02:59]}  Qb6 {[%clk 0:02:53]} 5. a4 {[%clk 0:02:53]}  b4 {[%clk 0:02:51]} 6. Nbd2 {[%clk 0:02:48]}  Nxd5 {[%clk 0:02:41]} 7. e4 {[%clk 0:02:48]}  Nc7 {[%clk 0:02:36]} 8. Bd3 {[%clk 0:02:26]}  Ne6 {[%clk 0:02:32]} 9. Nc4 {[%clk 0:02:21]}  Qc7 {[%clk 0:02:24]} 10. Bh4 {[%clk 0:02:04]}  Nc6 {[%clk 0:02:24]} 11. O-O {[%clk 0:02:01]}  g6 {[%clk 0:02:11]} 12. Bg3 {[%clk 0:02:00]}  Nf4 {[%clk 0:02:03]} 13. Ng5 {[%clk 0:01:35]}  Bh6 {[%clk 0:01:48]} 14. Qg4 {[%clk 0:01:31]}  e5 {[%clk 0:01:35]} 15. Bxf4 {[%clk 0:01:04]}  exf4 {[%clk 0:01:36]} 16. Qh4 {[%clk 0:01:04]}  Bg7 {[%clk 0:01:36]} 17. e5 {[%clk 0:00:57]}  Bxe5 {[%clk 0:00:56]} 18. Nxe5 {[%clk 0:00:20]}  Nxe5 {[%clk 0:00:57]} 19. Qxf4 {[%clk 0:00:19]}  d6 {[%clk 0:00:48]} 20. Bb5+ {[%clk 0:00:15]}  Bd7 {[%clk 0:00:44]} 21. Bxd7+ {[%clk 0:00:15]}  Qxd7 {[%clk 0:00:38]} 22. Ne4 {[%clk 0:00:15]}  Qe6 {[%clk 0:00:33]} 23. Rad1 {[%clk 0:00:13]}  Rd8 {[%clk 0:00:34]} 24. Nf6+ {[%clk 0:00:12]}  Ke7 {[%clk 0:00:28]} 25. Nd5+ {[%clk 0:00:13]}  Kf8 {[%clk 0:00:29]} 26. Qh6+ {[%clk 0:00:13]}  Kg8 {[%clk 0:00:29]} 27. Rfe1 {[%clk 0:00:13]}  f6 {[%clk 0:00:18]} 28. f4 {[%clk 0:00:11]}  Nf7 {[%clk 0:00:15]} 29. Qh4 {[%clk 0:00:06]}  g5 {[%clk 0:00:15]} 30. fxg5 {[%clk 0:00:04]}  fxg5 {[%clk 0:00:16]} 31. Qf2 {[%clk 0:00:04]}  Ne5 {[%clk 0:00:15]} 32. Qg3 {[%clk 0:00:03]}  h6 {[%clk 0:00:14]} 33. Rf1 {[%clk 0:00:03]}  Kg7 {[%clk 0:00:14]} 34. Rf6 {[%clk 0:00:03]}  Qg4 {[%clk 0:00:14]} 35. Qxg4 {[%clk 0:00:02]}  Nxg4 {[%clk 0:00:15]} 36. Re6 {[%clk 0:00:03]}  Rhe8 {[%clk 0:00:15]} 37. Rde1 {[%clk 0:00:03]}  Ne5 {[%clk 0:00:13]} 38. Rxe8 {[%clk 0:00:03]}  Rxe8 {[%clk 0:00:14]} 39. Re3 {[%clk 0:00:03]}  Kf7 {[%clk 0:00:11]} 40. h3 {[%clk 0:00:02]}  Nc4 {[%clk 0:00:10]} 41. Rf3+ {[%clk 0:00:02]}  Kg7 {[%clk 0:00:11]} 42. b3 {[%clk 0:00:02]}  Ne5 {[%clk 0:00:11]} 43. Re3 {[%clk 0:00:02]}  Kf7 {[%clk 0:00:12]} 44. c3 {[%clk 0:00:03]}  bxc3 {[%clk 0:00:10]} 45. Rxc3 {[%clk 0:00:03]}  Rb8 {[%clk 0:00:11]} 46. Re3 {[%clk 0:00:02]}  Ke6 {[%clk 0:00:11]} 47. Nc7+ {[%clk 0:00:03]}  Kd7 {[%clk 0:00:11]} 48. Nd5 {[%clk 0:00:04]}  Nc6 {[%clk 0:00:10]} 49. Rf3 {[%clk 0:00:03]}  Nd4 {[%clk 0:00:10]} 50. Rf6 {[%clk 0:00:03]}  Rxb3 {[%clk 0:00:09]} 51. Rxh6 {[%clk 0:00:03]}  c4 {[%clk 0:00:10]} 52. Rh7+ {[%clk 0:00:02]}  Kc6 {[%clk 0:00:10]} 53. Ne7+ {[%clk 0:00:03]}  Kc5 {[%clk 0:00:10]} 54. Nc8 {[%clk 0:00:02]}  c3 {[%clk 0:00:09]} 55. Rc7+ {[%clk 0:00:03]}  Kd5 {[%clk 0:00:09]} 56. Nxa7 {[%clk 0:00:03]}  c2 {[%clk 0:00:09]} 57. Kh2 {[%clk 0:00:04]}  Rb1 {[%clk 0:00:09]} 58. Nb5 {[%clk 0:00:04]}  c1=Q {[%clk 0:00:09]} 0-1


[Site "https://www.chess.com"]

[Event "Titled Tuesday Blitz April 25 Late 2023"]
[White "Ehlvest, Jaan"]
[Black "Terry, Renato"]
[WhiteFideId "4500016"]
[BlackFideId "3803457"]
[WhiteElo "2442"]
[BlackElo "2575"]
[Result "0-1"]
[Round "10"]
[TimeControl "180+2"]
[Date "2023.04.25"]
[WhiteClock "0:02:17"]
[BlackClock "0:02:48"]

1. e4 {[%clk 0:03:00]}  e6 {[%clk 0:03:00]} 2. Qe2 {[%clk 0:02:58]}  d5 {[%clk 0:03:00]} 3. exd5 {[%clk 0:02:57]}  Nf6 {[%clk 0:03:01]} 4. c4 {[%clk 0:02:53]}  Bc5 {[%clk 0:02:59]} 5. Nf3 {[%clk 0:02:49]}  O-O {[%clk 0:02:59]} 6. d4 {[%clk 0:02:49]}  Bb4+ {[%clk 0:03:00]} 7. Bd2 {[%clk 0:02:48]}  Bxd2+ {[%clk 0:03:00]} 8. Qxd2 {[%clk 0:02:47]}  exd5 {[%clk 0:03:01]} 9. cxd5 {[%clk 0:02:44]}  Nxd5 {[%clk 0:02:56]} 10. Be2 {[%clk 0:02:44]}  Nc6 {[%clk 0:02:55]} 11. O-O {[%clk 0:02:44]}  Re8 {[%clk 0:02:56]} 12. Nc3 {[%clk 0:02:44]}  Bg4 {[%clk 0:02:54]} 13. h3 {[%clk 0:02:43]}  Bh5 {[%clk 0:02:54]} 14. Rfe1 {[%clk 0:02:41]}  Qd6 {[%clk 0:02:54]} 15. Rad1 {[%clk 0:02:25]}  Nf4 {[%clk 0:02:51]} 16. d5 {[%clk 0:02:18]}  Nxe2+ {[%clk 0:02:48]} 17. Rxe2 {[%clk 0:02:17]}  Bxf3 {[%clk 0:02:48]} 0-1


[Site "https://www.chess.com"]

[Event "Titled Tuesday Blitz April 25 Late 2023"]
[White "Sabuk, Piotr"]
[Black "Rozen, Eytan"]
[WhiteFideId "1137565"]
[BlackFideId "2816750"]
[WhiteElo "2298"]
[BlackElo "2451"]
[Result "1-0"]
[Round "10"]
[TimeControl "180+2"]
[Date "2023.04.25"]
[WhiteClock "0:00:08"]
[BlackClock "0:00:01"]

1. d4 {[%clk 0:03:00]}  Nf6 {[%clk 0:02:57]} 2. c4 {[%clk 0:03:00]}  g6 {[%clk 0:02:57]} 3. Nc3 {[%clk 0:03:00]}  Bg7 {[%clk 0:02:58]} 4. e4 {[%clk 0:03:00]}  O-O {[%clk 0:02:58]} 5. Nf3 {[%clk 0:03:01]}  d6 {[%clk 0:02:58]} 6. h3 {[%clk 0:03:01]}  Nbd7 {[%clk 0:02:53]} 7. Bg5 {[%clk 0:02:58]}  e5 {[%clk 0:02:45]} 8. d5 {[%clk 0:02:57]}  h6 {[%clk 0:02:42]} 9. Be3 {[%clk 0:02:56]}  Nc5 {[%clk 0:02:38]} 10. Nd2 {[%clk 0:02:56]}  a5 {[%clk 0:02:35]} 11. g4 {[%clk 0:02:56]}  Nh7 {[%clk 0:02:33]} 12. h4 {[%clk 0:02:52]}  c6 {[%clk 0:02:25]} 13. Nb3 {[%clk 0:02:34]}  cxd5 {[%clk 0:02:11]} 14. cxd5 {[%clk 0:02:24]}  b6 {[%clk 0:02:11]} 15. Be2 {[%clk 0:02:16]}  a4 {[%clk 0:02:01]} 16. Nxc5 {[%clk 0:02:16]}  bxc5 {[%clk 0:01:59]} 17. Nxa4 {[%clk 0:01:58]}  f5 {[%clk 0:01:58]} 18. h5 {[%clk 0:01:43]}  f4 {[%clk 0:01:51]} 19. hxg6 {[%clk 0:01:42]}  Ng5 {[%clk 0:01:47]} 20. Bd2 {[%clk 0:01:30]}  Nxe4 {[%clk 0:01:46]} 21. Nc3 {[%clk 0:01:26]}  Nxd2 {[%clk 0:01:43]} 22. Qxd2 {[%clk 0:01:22]}  e4 {[%clk 0:01:44]} 23. Nxe4 {[%clk 0:01:22]}  Rb8 {[%clk 0:01:37]} 24. Rb1 {[%clk 0:01:12]}  Qe7 {[%clk 0:01:24]} 25. f3 {[%clk 0:01:07]}  Bxg4 {[%clk 0:01:21]} 26. Kf1 {[%clk 0:01:01]}  Bf5 {[%clk 0:01:18]} 27. Bd3 {[%clk 0:01:01]}  c4 {[%clk 0:01:17]} 28. Bxc4 {[%clk 0:00:55]}  Bxe4 {[%clk 0:01:13]} 29. Qe2 {[%clk 0:00:44]}  Rb4 {[%clk 0:00:34]} 30. b3 {[%clk 0:00:38]}  Rfb8 {[%clk 0:00:24]} 31. Re1 {[%clk 0:00:34]}  Re8 {[%clk 0:00:19]} 32. Qxe4 {[%clk 0:00:33]}  Qxe4 {[%clk 0:00:18]} 33. Rxe4 {[%clk 0:00:31]}  Ra8 {[%clk 0:00:17]} 34. Rh2 {[%clk 0:00:24]}  Be5 {[%clk 0:00:15]} 35. a4 {[%clk 0:00:24]}  Kg7 {[%clk 0:00:14]} 36. Rg2 {[%clk 0:00:18]}  Rab8 {[%clk 0:00:13]} 37. Kg1 {[%clk 0:00:16]}  Rxb3 {[%clk 0:00:09]} 38. Bxb3 {[%clk 0:00:15]}  Rxb3 {[%clk 0:00:10]} 39. Ra2 {[%clk 0:00:14]}  Rxf3 {[%clk 0:00:05]} 40. a5 {[%clk 0:00:15]}  Rb3 {[%clk 0:00:03]} 41. a6 {[%clk 0:00:15]}  f3 {[%clk 0:00:01]} 42. Kf2 {[%clk 0:00:08]} 1-0


[Site "https://www.chess.com"]

[Event "Titled Tuesday Blitz April 25 Late 2023"]
[White "Schnaider, Ilan"]
[Black "Djordjevic, Vuk"]
[WhiteFideId "169013"]
[BlackFideId "902098"]
[WhiteElo "2224"]
[BlackElo "2452"]
[Result "1-0"]
[Round "10"]
[TimeControl "180+2"]
[Date "2023.04.25"]
[WhiteClock "0:01:09"]
[BlackClock "0:00:03"]

1. e4 {[%clk 0:03:00]}  e6 {[%clk 0:03:00]} 2. d4 {[%clk 0:03:00]}  d5 {[%clk 0:03:00]} 3. Nd2 {[%clk 0:03:00]}  Be7 {[%clk 0:03:00]} 4. Bd3 {[%clk 0:02:59]}  c5 {[%clk 0:03:00]} 5. Ngf3 {[%clk 0:02:57]}  Nf6 {[%clk 0:02:57]} 6. e5 {[%clk 0:02:57]}  Nfd7 {[%clk 0:02:57]} 7. c3 {[%clk 0:02:57]}  b6 {[%clk 0:02:57]} 8. O-O {[%clk 0:02:56]}  Ba6 {[%clk 0:02:57]} 9. Bxa6 {[%clk 0:02:53]}  Nxa6 {[%clk 0:02:58]} 10. Re1 {[%clk 0:02:53]}  b5 {[%clk 0:02:57]} 11. Nf1 {[%clk 0:02:52]}  b4 {[%clk 0:02:32]} 12. Ng3 {[%clk 0:02:45]}  h5 {[%clk 0:02:31]} 13. h3 {[%clk 0:02:36]}  h4 {[%clk 0:02:22]} 14. Ne2 {[%clk 0:02:34]}  Nc7 {[%clk 0:02:06]} 15. cxb4 {[%clk 0:02:25]}  cxb4 {[%clk 0:02:04]} 16. Be3 {[%clk 0:02:25]}  a5 {[%clk 0:02:02]} 17. Rc1 {[%clk 0:02:24]}  Nb6 {[%clk 0:01:59]} 18. b3 {[%clk 0:02:22]}  Qd7 {[%clk 0:01:55]} 19. Qd3 {[%clk 0:02:19]}  Nb5 {[%clk 0:01:49]} 20. Bg5 {[%clk 0:02:06]}  Bxg5 {[%clk 0:01:03]} 21. Nxg5 {[%clk 0:02:07]}  Rh5 {[%clk 0:00:38]} 22. f4 {[%clk 0:02:05]}  Nc7 {[%clk 0:00:26]} 23. Rc2 {[%clk 0:01:59]}  Ke7 {[%clk 0:00:20]} 24. Rec1 {[%clk 0:01:57]}  Ne8 {[%clk 0:00:20]} 25. Qf3 {[%clk 0:01:45]}  g6 {[%clk 0:00:19]} 26. Rc6 {[%clk 0:01:35]}  Qa7 {[%clk 0:00:18]} 27. Qg4 {[%clk 0:01:25]}  Nd7 {[%clk 0:00:14]} 28. Nxf7 {[%clk 0:01:19]}  Kxf7 {[%clk 0:00:12]} 29. Qxe6+ {[%clk 0:01:19]}  Kf8 {[%clk 0:00:11]} 30. Qxg6 {[%clk 0:01:18]}  Rh8 {[%clk 0:00:08]} 31. Qf5+ {[%clk 0:01:14]}  Ke7 {[%clk 0:00:07]} 32. Re6+ {[%clk 0:01:11]}  Kd8 {[%clk 0:00:06]} 33. Qg5+ {[%clk 0:01:12]}  Ndf6 {[%clk 0:00:04]} 34. exf6 {[%clk 0:01:12]}  Qf7 {[%clk 0:00:03]} 35. Qxd5+ {[%clk 0:01:09]}  Qd7 {[%clk 0:00:03]} 36. Qxa8+ {[%clk 0:01:09]}  Qc8 {[%clk 0:00:03]} 37. Qxc8# {[%clk 0:01:09]} 1-0


[Site "https://www.chess.com"]

[Event "Titled Tuesday Blitz April 25 Late 2023"]
[White "Harshavardhan G B"]
[Black "Piesik, Piotr"]
[WhiteFideId "25059009"]
[BlackFideId "1136194"]
[WhiteElo "2323"]
[BlackElo "2299"]
[Result "1-0"]
[Round "10"]
[TimeControl "180+2"]
[Date "2023.04.25"]
[WhiteClock "0:01:37"]
[BlackClock "0:01:34"]

1. e4 {[%clk 0:02:53]}  g6 {[%clk 0:02:38]} 2. h4 {[%clk 0:02:49]}  h5 {[%clk 0:02:37]} 3. Nf3 {[%clk 0:02:48]}  c6 {[%clk 0:02:37]} 4. d4 {[%clk 0:02:48]}  d5 {[%clk 0:02:38]} 5. Nc3 {[%clk 0:02:47]}  Nh6 {[%clk 0:02:36]} 6. Bd3 {[%clk 0:02:46]}  Bg4 {[%clk 0:02:33]} 7. Bg5 {[%clk 0:02:44]}  Bg7 {[%clk 0:02:24]} 8. Qe2 {[%clk 0:02:42]}  dxe4 {[%clk 0:02:22]} 9. Nxe4 {[%clk 0:02:40]}  O-O {[%clk 0:02:20]} 10. O-O-O {[%clk 0:02:37]}  Nf5 {[%clk 0:02:18]} 11. c3 {[%clk 0:02:35]}  Qa5 {[%clk 0:02:17]} 12. Kb1 {[%clk 0:02:33]}  Nd7 {[%clk 0:02:15]} 13. Ned2 {[%clk 0:02:31]}  Rfe8 {[%clk 0:02:13]} 14. Nc4 {[%clk 0:02:17]}  Qc7 {[%clk 0:02:13]} 15. Qc2 {[%clk 0:02:17]}  b5 {[%clk 0:02:09]} 16. Ne3 {[%clk 0:02:16]}  Nxe3 {[%clk 0:02:08]} 17. fxe3 {[%clk 0:02:16]}  e5 {[%clk 0:02:08]} 18. Rdf1 {[%clk 0:02:04]}  f6 {[%clk 0:02:06]} 19. Bxg6 {[%clk 0:02:02]}  fxg5 {[%clk 0:02:05]} 20. Nxg5 {[%clk 0:02:00]}  Nf6 {[%clk 0:02:00]} 21. Bf7+ {[%clk 0:01:56]}  Kf8 {[%clk 0:01:50]} 22. Qg6 {[%clk 0:01:49]}  Qe7 {[%clk 0:01:41]} 23. Rxf6 {[%clk 0:01:44]}  Qxf6 {[%clk 0:01:38]} 24. Nh7+ {[%clk 0:01:41]}  Ke7 {[%clk 0:01:38]} 25. Nxf6 {[%clk 0:01:42]}  Bxf6 {[%clk 0:01:38]} 26. Rf1 {[%clk 0:01:40]}  Bxh4 {[%clk 0:01:34]} 27. Bxe8 {[%clk 0:01:37]} 1-0


[Site "https://www.chess.com"]

[Event "Titled Tuesday Blitz April 25 Late 2023"]
[White "Pakleza, Zbigniew"]
[Black "Lenaerts, Lennert"]
[WhiteFideId "1119290"]
[BlackFideId "211435"]
[WhiteElo "2410"]
[BlackElo "2334"]
[Result "0-1"]
[Round "10"]
[TimeControl "180+2"]
[Date "2023.04.25"]
[WhiteClock "0:00:01"]
[BlackClock "0:00:06"]

1. d4 {[%clk 0:03:00]}  d5 {[%clk 0:02:39]} 2. Bf4 {[%clk 0:03:00]}  Nf6 {[%clk 0:02:37]} 3. e3 {[%clk 0:03:00]}  e6 {[%clk 0:02:36]} 4. Nd2 {[%clk 0:02:59]}  c5 {[%clk 0:02:37]} 5. c3 {[%clk 0:02:59]}  Bd6 {[%clk 0:02:37]} 6. Bg3 {[%clk 0:02:59]}  O-O {[%clk 0:02:34]} 7. Ngf3 {[%clk 0:03:00]}  b6 {[%clk 0:02:34]} 8. Ne5 {[%clk 0:02:59]}  Bb7 {[%clk 0:02:34]} 9. f4 {[%clk 0:02:58]}  Ne4 {[%clk 0:02:34]} 10. Nxe4 {[%clk 0:02:56]}  dxe4 {[%clk 0:02:34]} 11. Nc4 {[%clk 0:02:55]}  Be7 {[%clk 0:02:34]} 12. Be2 {[%clk 0:02:51]}  Nd7 {[%clk 0:02:32]} 13. O-O {[%clk 0:02:49]}  Rc8 {[%clk 0:02:33]} 14. f5 {[%clk 0:02:47]}  exf5 {[%clk 0:02:31]} 15. Rxf5 {[%clk 0:02:46]}  cxd4 {[%clk 0:02:26]} 16. cxd4 {[%clk 0:02:44]}  Nf6 {[%clk 0:02:17]} 17. Qb3 {[%clk 0:01:51]}  Nd5 {[%clk 0:02:07]} 18. Raf1 {[%clk 0:01:42]}  g6 {[%clk 0:02:00]} 19. Re5 {[%clk 0:01:32]}  f5 {[%clk 0:01:51]} 20. Rxe7 {[%clk 0:01:05]}  Qxe7 {[%clk 0:01:48]} 21. Nd6 {[%clk 0:00:48]}  Rcd8 {[%clk 0:01:46]} 22. Nxb7 {[%clk 0:00:35]}  Qxb7 {[%clk 0:01:47]} 23. Be5 {[%clk 0:00:28]}  a6 {[%clk 0:01:05]} 24. Rc1 {[%clk 0:00:21]}  Rd7 {[%clk 0:00:46]} 25. a4 {[%clk 0:00:18]}  Rc8 {[%clk 0:00:43]} 26. Rf1 {[%clk 0:00:08]}  h5 {[%clk 0:00:40]} 27. h3 {[%clk 0:00:07]}  Kh7 {[%clk 0:00:38]} 28. g4 {[%clk 0:00:07]}  fxg4 {[%clk 0:00:32]} 29. hxg4 {[%clk 0:00:08]}  Rf7 {[%clk 0:00:32]} 30. Bxa6 {[%clk 0:00:06]}  Rxf1+ {[%clk 0:00:30]} 31. Bxf1 {[%clk 0:00:07]}  Qd7 {[%clk 0:00:26]} 32. Bh3 {[%clk 0:00:02]}  Rc1+ {[%clk 0:00:21]} 33. Kh2 {[%clk 0:00:03]}  Qf7 {[%clk 0:00:15]} 34. Bg3 {[%clk 0:00:01]}  hxg4 {[%clk 0:00:10]} 35. Bg2 {[%clk 0:00:01]}  Nf6 {[%clk 0:00:06]} 36. Bf4 {[%clk 0:00:01]}  Qxb3 {[%clk 0:00:06]} 0-1


[Site "https://www.chess.com"]

[Event "Titled Tuesday Blitz April 25 Late 2023"]
[White "Gonzalez, Francisco Silva"]
[Black "Weetik, Vjacheslav"]
[WhiteFideId "1512285"]
[BlackFideId "4153472"]
[WhiteElo "2074"]
[BlackElo "2469"]
[Result "1-0"]
[Round "10"]
[TimeControl "180+2"]
[Date "2023.04.25"]
[WhiteClock "0:00:31"]
[BlackClock "0:00:02"]

1. d4 {[%clk 0:03:00]}  Nf6 {[%clk 0:02:59]} 2. c4 {[%clk 0:03:00]}  g6 {[%clk 0:02:59]} 3. Nc3 {[%clk 0:03:00]}  Bg7 {[%clk 0:03:00]} 4. e4 {[%clk 0:02:59]}  d6 {[%clk 0:03:00]} 5. f3 {[%clk 0:03:00]}  O-O {[%clk 0:03:01]} 6. Be3 {[%clk 0:02:59]}  e5 {[%clk 0:03:01]} 7. d5 {[%clk 0:02:59]}  c6 {[%clk 0:03:01]} 8. Bd3 {[%clk 0:02:58]}  Nh5 {[%clk 0:02:57]} 9. Qd2 {[%clk 0:02:57]}  cxd5 {[%clk 0:02:53]} 10. cxd5 {[%clk 0:02:56]}  f5 {[%clk 0:02:49]} 11. O-O-O {[%clk 0:02:52]}  Na6 {[%clk 0:02:46]} 12. Nge2 {[%clk 0:02:51]}  Bd7 {[%clk 0:02:42]} 13. h3 {[%clk 0:02:49]}  f4 {[%clk 0:02:41]} 14. Bf2 {[%clk 0:02:48]}  Qa5 {[%clk 0:02:32]} 15. Kb1 {[%clk 0:02:48]}  Nb4 {[%clk 0:02:20]} 16. a3 {[%clk 0:02:44]}  Nxd3 {[%clk 0:02:20]} 17. Qxd3 {[%clk 0:02:44]}  Rfc8 {[%clk 0:02:12]} 18. Nc1 {[%clk 0:02:40]}  b5 {[%clk 0:01:57]} 19. Nb3 {[%clk 0:02:40]}  Qa6 {[%clk 0:01:56]} 20. a4 {[%clk 0:02:37]}  Rab8 {[%clk 0:01:48]} 21. Rc1 {[%clk 0:02:33]}  Bf8 {[%clk 0:01:18]} 22. axb5 {[%clk 0:02:32]}  Bxb5 {[%clk 0:01:15]} 23. Nxb5 {[%clk 0:02:31]}  Rxc1+ {[%clk 0:01:15]} 24. Rxc1 {[%clk 0:02:29]}  Rxb5 {[%clk 0:01:15]} 25. Rc6 {[%clk 0:01:59]}  Qb7 {[%clk 0:01:11]} 26. Rc7 {[%clk 0:01:47]}  Rxb3 {[%clk 0:01:06]} 27. Rxb7 {[%clk 0:01:44]}  Rxd3 {[%clk 0:01:06]} 28. Kc2 {[%clk 0:01:41]}  Re3 {[%clk 0:01:05]} 29. Bxe3 {[%clk 0:01:39]}  fxe3 {[%clk 0:01:06]} 30. Kd3 {[%clk 0:01:39]}  Bh6 {[%clk 0:00:16]} 31. Rxa7 {[%clk 0:01:38]}  Nf4+ {[%clk 0:00:13]} 32. Kxe3 {[%clk 0:01:38]}  Nxd5+ {[%clk 0:00:10]} 33. Ke2 {[%clk 0:01:35]}  Ne3 {[%clk 0:00:07]} 34. g3 {[%clk 0:01:29]}  d5 {[%clk 0:00:07]} 35. exd5 {[%clk 0:01:26]}  Nxd5 {[%clk 0:00:07]} 36. Kd3 {[%clk 0:01:25]}  Bf8 {[%clk 0:00:04]} 37. Ke4 {[%clk 0:01:18]}  Nb4 {[%clk 0:00:04]} 38. Rb7 {[%clk 0:01:14]}  Nc6 {[%clk 0:00:03]} 39. Kd5 {[%clk 0:01:12]}  Nd4 {[%clk 0:00:03]} 40. f4 {[%clk 0:01:08]}  Nf5 {[%clk 0:00:02]} 41. fxe5 {[%clk 0:01:07]}  Nxg3 {[%clk 0:00:03]} 42. e6 {[%clk 0:01:06]}  Nf5 {[%clk 0:00:03]} 43. b4 {[%clk 0:01:02]}  Ne7+ {[%clk 0:00:03]} 44. Kc4 {[%clk 0:00:52]}  Nc6 {[%clk 0:00:04]} 45. Rc7 {[%clk 0:00:46]}  Nxb4 {[%clk 0:00:02]} 46. e7 {[%clk 0:00:45]}  Bxe7 {[%clk 0:00:02]} 47. Rxe7 {[%clk 0:00:45]}  Nc6 {[%clk 0:00:03]} 48. Rc7 {[%clk 0:00:40]}  Ne5+ {[%clk 0:00:03]} 49. Kd5 {[%clk 0:00:41]}  Nf7 {[%clk 0:00:04]} 50. h4 {[%clk 0:00:38]}  h6 {[%clk 0:00:01]} 51. Ke6 {[%clk 0:00:35]}  Nd8+ {[%clk 0:00:02]} 52. Kf6 {[%clk 0:00:34]}  g5 {[%clk 0:00:02]} 53. Rc8 {[%clk 0:00:31]} 1-0


[Site "https://www.chess.com"]